bitfinex/quotes_ETHUSD_20250428
["timestamp","ask_amount","ask_price","bid_price","bid_amount"]
[1745874120861,5.5556,1788.6,1788.3,8.5459804]
[1745874121065,5.5556,1788.6,1788.3,10.17017265]
[1745874122188,0.7686,1788.6,1788.3,10.17017265]
[1745874122393,5.5902,1789.3,1788.7,3.0]
[1745874122697,5.5902,1789.3,1789.0,5.58958608]
[1745874123466,0.8032,1789.5,1789.2,5.58904056]
[1745874123681,6.39160197,1789.5,1789.1,2.9541983]
[1745874124599,0.8187,1789.4,1788.9,8.54412233]
[1745874125400,6.40737243,1789.4,1788.9,8.54412233]
[1745874125596,6.40737243,1789.4,1788.9,9.98754946]
[1745874125769,5.58879186,1789.3,1788.9,4.39762543]
[1745874125969,5.58879186,1789.3,1788.9,9.98764718]
[1745874127063,6.40733479,1789.4,1788.9,9.98764718]
[1745874127267,6.40733479,1789.4,1788.9,9.98746977]
[1745874127466,11.99606318,1789.4,1788.9,9.98746977]
[1745874127666,6.40733479,1789.4,1788.9,9.98746977]
[1745874127866,6.40733479,1789.4,1789.0,0.99874698]
[1745874128983,5.5888805,1789.3,1789.0,0.99874698]
[1745874130379,11.1779359,1789.3,1789.0,0.99874698]
[1745874130693,5.58897463,1789.3,1788.9,2.9541983]
[1745874131267,5.58897463,1789.3,1788.9,8.54416855]
[1745874134305,0.10668084,1789.2,1788.9,8.54416855]
[1745874135001,0.10668084,1789.2,1788.9,2.9541983]
[1745874135218,0.10668084,1789.2,1788.5,2.9541983]
[1745874135219,6.4173989,1788.5,1787.9,0.6185]
[1745874135424,8.54403929,1789.0,1788.2,0.6185]
[1745874135425,10.3730899,1788.6,1788.2,0.6185]
[1745874135578,0.10457633,1788.4,1788.2,3.5726983]
[1745874135778,4.782,1788.6,1788.3,0.35726983]
[1745874136006,0.10457633,1788.4,1788.3,0.35726983]
[1745874136374,4.782,1788.6,1788.3,11.54065436]
[1745874136575,0.10457633,1788.4,1788.3,5.94892813]
[1745874136786,4.782,1788.6,1788.3,11.54063806]
[1745874136987,0.10457633,1788.4,1788.3,5.94892813]
[1745874137712,4.782,1788.6,1788.3,5.94892813]
[1745874137875,0.10457633,1788.4,1788.3,5.94892813]
[1745874138095,4.782,1788.6,1788.3,5.94892813]
[1745874138298,0.10457633,1788.4,1788.3,5.94892813]
[1745874138492,4.782,1788.6,1788.3,5.94892813]
[1745874138696,4.782,1788.6,1788.4,0.59489281]
[1745874139700,4.782,1788.6,1788.3,0.35726983]
[1745874140227,4.782,1788.6,1788.3,5.94914047]
[1745874141757,4.782,1788.6,1788.4,8.54578838]
[1745874142062,4.782,1788.6,1788.5,5.5912776]
[1745874142218,11.12603881,1788.9,1788.5,5.5912776]
[1745874142418,11.12603881,1788.9,1788.5,7.0049842]
[1745874142958,5.5359,1788.9,1788.5,7.00476326]
[1745874143120,11.12593123,1788.9,1788.5,7.62326326]
[1745874143450,11.12593123,1788.9,1788.5,1.4137066]
[1745874143656,11.12605424,1788.9,1788.5,1.4137066]
[1745874143852,11.12605424,1788.9,1788.5,7.00490452]
[1745874144261,5.5359,1788.9,1788.6,0.70049045]
[1745874144555,11.12593861,1788.9,1788.6,0.70049045]
[1745874145334,10.37303861,1788.9,1788.6,0.70049045]
[1745874145522,10.37303861,1788.9,1788.6,1.31899045]
[1745874145922,4.783,1788.9,1788.6,1.31899045]
[1745874147123,4.783,1788.9,1788.6,4.27318875]
[1745874147326,4.783,1788.9,1788.7,0.42731888]
[1745874147729,4.783,1788.9,1788.7,6.01796623]
[1745874148655,4.783,1788.9,1788.7,0.42731888]
[1745874150765,4.783,1788.9,1788.7,6.01795186]
[1745874151065,4.783,1788.9,1788.8,5.59033989]
[1745874151364,4.783,1788.9,1788.8,6.75116906]
[1745874153653,4.783,1788.9,1788.8,9.70536736]
[1745874153861,4.783,1789.3,1789.1,5.5892467]
[1745874154167,4.783,1789.3,1789.0,8.54368327]
[1745874154345,4.783,1789.3,1789.1,5.58923816]
[1745874154551,4.783,1789.3,1789.1,7.0025303]
[1745874154872,4.783,1789.3,1789.1,1.41329214]
[1745874155230,4.783,1789.3,1789.1,7.00264025]
[1745874155430,4.783,1789.3,1789.1,1.41329214]
[1745874155955,4.783,1789.3,1789.1,7.00261462]
[1745874156167,4.783,1789.3,1789.2,0.70026146]
[1745874158077,4.783,1789.3,1789.2,6.28935155]
[1745874158278,4.782,1789.4,1789.2,6.28922401]
[1745874158576,4.782,1789.5,1789.3,5.58877773]
[1745874158785,4.782,1789.5,1789.4,0.55887777]
[1745874159346,0.7521,1789.7,1789.4,0.55887777]
[1745874159546,11.12174288,1789.7,1789.4,0.55887777]
[1745874159769,6.33974288,1789.7,1789.4,0.55887777]
[1745874160048,11.12174288,1789.7,1789.4,0.55887777]
[1745874160374,6.33974288,1789.7,1789.4,0.55887777]
[1745874160579,11.11974288,1789.7,1789.4,0.55887777]
[1745874160977,6.33974288,1789.7,1789.4,0.55887777]
[1745874161276,11.11974288,1789.7,1789.4,0.55887777]
[1745874161577,6.33974288,1789.7,1789.4,0.55887777]
[1745874162155,5.5321,1789.7,1789.4,0.55887777]
[1745874162356,11.11972865,1789.7,1789.4,0.55887777]
[1745874162565,5.5321,1789.7,1789.4,0.55887777]
[1745874162979,0.7521,1789.7,1789.4,0.55887777]
[1745874163165,5.5321,1789.7,1789.4,0.55887777]
[1745874163377,11.11963728,1789.7,1789.4,0.55887777]
[1745874164087,11.11963728,1789.7,1789.2,9.86192318]
[1745874164442,11.11963728,1789.7,1789.2,15.45079637]
[1745874164645,11.11963728,1789.7,1789.0,6.0193168]
[1745874164646,6.35136704,1789.0,1788.6,0.6185]
[1745874164970,6.3513813,1789.0,1788.6,0.6185]
[1745874165179,6.3513813,1789.0,1788.4,0.6185]
[1745874165180,5.59082916,1788.7,1788.4,0.6185]
[1745874165481,5.59082916,1788.7,1788.3,2.9541983]
[1745874165482,6.35232916,1788.7,1788.3,8.54607564]
[1745874165784,6.35232916,1788.7,1788.4,0.85460756]
[1745874166749,0.7615,1788.7,1788.4,0.85460756]
[1745874167283,6.3521736,1788.7,1788.3,8.54589963]
[1745874167470,0.7615,1788.7,1788.3,8.54589963]
[1745874167781,5.5415,1788.7,1788.3,8.54589963]
[1745874171086,5.5415,1788.7,1788.3,8.54589688]
[1745874171386,5.5415,1788.7,1788.4,5.59148045]
[1745874171586,11.13217834,1788.7,1788.4,1.41373773]
[1745874171798,5.5415,1788.7,1788.4,1.41373773]
[1745874172189,5.5415,1788.7,1788.4,7.00529875]
[1745874172397,5.5415,1788.7,1788.4,1.41373773]
[1745874178397,11.13229312,1788.7,1788.3,8.54586932]
[1745874178559,11.13232146,1788.7,1788.2,6.21070452]
[1745874178881,11.13232146,1788.7,1788.3,5.59189745]
[1745874179259,5.5415,1788.7,1788.3,11.18359812]
[1745874179465,5.5415,1788.7,1788.3,5.59170067]
[1745874179688,5.5415,1788.7,1788.3,11.18337308]
[1745874179891,5.5415,1788.7,1788.4,5.59158954]
[1745874180494,5.5415,1788.7,1788.5,5.5911625]
[1745874180705,4.78,1788.7,1788.5,5.5911625]
[1745874182403,4.78,1788.7,1788.5,11.18222201]
[1745874182705,4.78,1788.7,1788.5,5.59105951]
[1745874182888,4.78,1788.7,1788.5,5.59104684]
[1745874183406,4.78,1788.7,1788.6,5.590965]
[1745874183593,3.0,1789.0,1788.7,5.59040509]
[1745874183899,4.781,1789.0,1788.7,5.59040509]
[1745874184673,4.781,1789.0,1788.7,11.18083329]
[1745874184887,4.781,1789.0,1788.7,5.59040509]
[1745874185505,4.781,1789.0,1788.6,11.18157772]
[1745874185676,4.781,1789.0,1788.6,12.7687559]
[1745874186311,4.781,1789.0,1788.7,5.59060886]
[1745874186812,4.781,1789.0,1788.7,5.59048245]
[1745874187021,0.7718,1789.1,1788.7,5.5904387]
[1745874187195,5.5528,1789.1,1788.7,5.5904387]
[1745874187394,5.5528,1789.1,1788.7,6.7165251]
[1745874187595,6.36120698,1789.1,1788.7,6.7165251]
[1745874187996,11.14220698,1789.1,1788.7,6.7165251]
[1745874188321,5.5528,1789.1,1788.7,12.30696526]
[1745874188814,5.5528,1789.1,1788.8,5.59024141]
[1745874189205,5.5528,1789.1,1788.8,6.82080149]
[1745874189406,4.781,1789.1,1788.9,5.58995809]
[1745874189606,23.16015219,1789.3,1788.9,5.58995809]
[1745874189924,4.781,1789.2,1788.9,5.58995809]
[1745874190621,4.781,1789.2,1788.9,5.58983114]
[1745874190826,4.781,1789.2,1788.9,6.89274726]
[1745874193325,10.37011769,1789.2,1788.7,5.59051917]
[1745874193500,0.7892,1789.0,1788.7,5.59051917]
[1745874193697,0.7892,1789.0,1788.7,5.59047881]
[1745874193902,0.7892,1789.0,1788.7,11.18091134]
[1745874194312,0.7892,1789.0,1788.7,5.59043253]
[1745874194695,0.7892,1789.0,1788.6,6.20929132]
[1745874194897,0.786,1788.8,1788.4,6.20991803]
[1745874195130,0.786,1788.8,1788.4,11.80131068]
[1745874195927,0.786,1788.8,1788.5,5.59126259]
[1745874196128,6.37635655,1788.8,1788.4,6.20989265]
[1745874196332,6.37635655,1788.8,1788.4,5.59139265]
[1745874196532,5.59096499,1788.7,1788.3,9.16444624]
[1745874196834,6.37646519,1788.8,1788.4,5.59156043]
[1745874197336,11.15546519,1788.8,1788.4,5.59156043]
[1745874198836,11.15546519,1788.8,1788.3,9.16444624]
[1745874199035,11.15546519,1788.8,1788.3,14.75616674]
[1745874199332,11.15546519,1788.8,1788.4,5.59152067]
[1745874200339,5.565,1788.8,1788.4,11.18295381]
[1745874200529,5.565,1788.8,1788.5,5.5912629]
[1745874200725,11.15537041,1788.8,1788.4,5.59143314]
[1745874201801,5.59074467,1788.7,1788.3,5.59178861]
[1745874202006,5.59068542,1788.7,1788.3,7.00559256]
[1745874202841,11.15548912,1788.8,1788.3,7.00554675]
[1745874203048,11.15548912,1788.8,1788.4,5.59146253]
[1745874204639,16.74606533,1788.8,1788.4,5.59146253]
[1745874204803,11.15548912,1788.8,1788.4,5.59146253]
[1745874205003,11.15548912,1788.8,1788.4,6.85117599]
[1745874205203,11.15548912,1788.8,1788.4,1.25971346]
[1745874206855,16.7460732,1788.8,1788.4,1.25971346]
[1745874207039,16.7460732,1788.8,1788.3,5.59168582]
[1745874207521,11.15548912,1788.8,1788.4,5.59157615]
[1745874208955,11.15548912,1788.8,1788.4,6.21007615]
[1745874209250,16.74613471,1788.8,1788.4,0.6185]
[1745874209459,11.15548912,1788.8,1788.4,0.6185]
[1745874209765,11.15548912,1788.8,1788.4,1.79868698]
[1745874209964,11.15548912,1788.8,1788.4,7.39022828]
[1745874213370,11.15548912,1788.8,1788.4,7.39010829]
[1745874213532,4.779,1788.8,1788.6,2.9541983]
[1745874213731,6.05,1788.9,1788.7,5.59065242]
[1745874213926,4.78,1789.0,1788.8,6.14940241]
[1745874214934,4.78,1789.0,1788.8,0.55906524]
[1745874215134,4.78,1789.0,1788.6,9.16344056]
[1745874216073,4.78,1789.0,1788.7,5.59059395]
[1745874216769,10.36987653,1789.0,1788.6,6.20924226]
[1745874216977,4.78,1789.0,1788.7,5.59061474]
[1745874217573,10.36987415,1789.0,1788.6,5.59074226]
[1745874217737,10.36987415,1789.0,1788.6,6.70892673]
[1745874217936,4.78,1789.0,1788.7,5.59061186]
[1745874219175,10.36974922,1789.0,1788.6,12.29972094]
[1745874219386,4.78,1789.0,1788.6,12.29972094]
[1745874220065,4.78,1789.0,1788.7,5.59063031]
[1745874220245,4.78,1789.0,1788.7,6.82058601]
[1745874221080,10.36983554,1789.0,1788.7,1.2299557]
[1745874221250,0.7725,1788.9,1788.6,5.59074226]
[1745874225290,0.7725,1788.9,1788.6,11.18148869]
[1745874225491,0.7725,1788.9,1788.6,5.59074226]
[1745874225654,0.7725,1788.9,1788.6,11.18153573]
[1745874226154,0.7725,1788.9,1788.7,5.5906354]
[1745874226586,0.7725,1788.9,1788.6,5.59074226]
[1745874226894,0.7725,1788.9,1788.7,0.55907423]
[1745874227066,0.7725,1788.9,1788.6,5.59074226]
[1745874228890,0.7725,1788.9,1788.6,11.181506]
[1745874229183,0.7725,1788.9,1788.7,5.5906406]
[1745874229592,0.7725,1788.9,1788.6,11.18150581]
[1745874229889,0.7725,1788.9,1788.6,5.59074226]
[1745874230392,0.7725,1788.9,1788.6,6.14981649]
[1745874230797,0.7725,1788.9,1788.6,11.74056757]
[1745874231290,0.7725,1788.9,1788.6,11.74055565]
[1745874231595,6.05,1789.1,1789.0,5.58971492]
[1745874231792,6.05,1789.1,1789.0,6.70767547]
[1745874232012,6.05,1789.1,1789.0,1.11796055]
[1745874232205,6.05,1789.1,1788.9,5.58998152]
[1745874232515,6.05,1789.1,1788.8,11.1803091]
[1745874233416,6.05,1789.1,1788.9,5.5900001]
[1745874234218,0.7577,1789.0,1788.8,5.59006534]
[1745874234382,6.05,1789.1,1788.9,11.17970446]
[1745874234583,6.05,1789.1,1789.0,6.70768537]
[1745874236594,12.39617649,1789.4,1789.0,6.70768537]
[1745874239116,12.39617649,1789.4,1789.0,6.70749322]
[1745874239322,12.39617649,1789.4,1789.0,12.29700146]
[1745874239529,12.39617649,1789.4,1789.0,6.70747869]
[1745874241237,12.39617649,1789.4,1789.0,5.58950824]
[1745874241530,12.39617649,1789.4,1788.9,9.16255915]
[1745874241531,5.58879258,1789.3,1788.9,9.16255915]
[1745874241695,12.39617649,1789.4,1789.0,5.58958824]
[1745874243193,6.05,1789.4,1789.1,5.58932553]
[1745874243797,11.63848604,1789.4,1789.0,5.58952124]
[1745874245347,11.63848604,1789.4,1789.0,11.17908214]
[1745874245643,11.63848604,1789.4,1789.0,5.58952124]
[1745874249340,11.63848604,1789.4,1789.1,5.58940129]
[1745874249635,6.05,1789.4,1789.0,5.58952124]
[1745874249937,11.63856699,1789.4,1789.0,5.58952124]
[1745874251844,17.22727601,1789.4,1789.0,5.58952124]
[1745874252068,13.91868459,1789.4,1789.0,5.58952124]
[1745874252337,0.7733,1789.3,1789.0,5.58952124]
[1745874254045,0.7733,1789.3,1788.9,8.54407795]
[1745874254046,0.7733,1789.3,1788.8,5.59017436]
[1745874254214,6.36223428,1789.3,1788.9,5.59001698]
[1745874255049,6.36223428,1789.3,1788.8,5.59017436]
[1745874255261,8.15046184,1789.3,1788.9,5.58993723]
[1745874256523,8.15046184,1789.3,1788.9,5.58984325]
[1745874256727,8.15046184,1789.3,1788.9,5.58982582]
[1745874256947,8.15046184,1789.3,1788.9,5.58982237]
[1745874257255,6.05,1789.4,1788.9,9.16265753]
[1745874257424,6.05,1789.4,1789.2,5.58893246]
[1745874258194,6.05,1789.4,1789.2,5.58902233]
[1745874258835,6.05,1789.4,1789.1,5.58920856]
[1745874260155,17.21335978,1789.5,1789.1,5.58920856]
[1745874260519,17.21335978,1789.5,1789.1,11.17841727]
[1745874260723,6.05,1789.5,1789.4,5.5884654]
[1745874261027,10.824,1789.8,1789.6,5.58784085]
[1745874261453,10.824,1789.8,1789.6,11.17546113]
[1745874261654,10.824,1789.8,1789.6,5.58762028]
[1745874262031,10.824,1789.8,1789.7,5.58752863]
[1745874262430,10.824,1789.8,1789.6,5.58766956]
[1745874264859,10.824,1789.8,1789.5,5.58797334]
[1745874265363,10.824,1789.8,1789.5,11.175895]
[1745874265665,10.824,1789.8,1789.5,5.58792166]
[1745874266565,10.824,1789.8,1789.5,6.80856478]
[1745874269064,16.41125393,1789.8,1789.5,1.22064312]
[1745874269234,16.41125393,1789.8,1789.5,6.80877884]
[1745874269456,10.824,1789.8,1789.5,6.80877884]
[1745874273782,10.824,1789.8,1789.5,12.39672422]
[1745874274073,10.824,1789.8,1789.6,5.58783056]
[1745874275684,10.824,1789.8,1789.5,12.39652043]
[1745874276275,10.824,1789.8,1789.5,6.80857505]
[1745874276478,10.824,1789.8,1789.5,11.17589606]
[1745874276677,10.824,1789.8,1789.5,5.58793193]
[1745874278482,10.824,1789.8,1789.5,11.17588527]
[1745874278886,10.824,1789.8,1789.5,5.58793193]
[1745874279183,10.824,1789.8,1789.5,11.17586859]
[1745874279490,10.824,1789.8,1789.5,11.17593125]
[1745874279785,10.824,1789.8,1789.6,5.58780949]
[1745874284276,10.824,1789.8,1789.5,5.5879996]
[1745874284915,10.824,1789.8,1789.5,11.17587801]
[1745874285090,10.824,1789.8,1789.5,5.5879277]
[1745874285825,10.824,1789.8,1789.6,5.58768644]
[1745874286510,10.824,1789.8,1789.5,11.17591214]
[1745874287109,10.824,1789.8,1789.6,5.58778831]
[1745874290131,10.824,1789.8,1789.5,5.5879277]
[1745874290803,6.05,1789.8,1789.5,5.5879277]
[1745874292351,6.05,1789.8,1789.5,11.17586465]
[1745874292645,6.05,1789.8,1789.6,5.58773951]
[1745874293746,6.05,1789.8,1789.4,0.6185]
[1745874293747,0.7991,1789.7,1789.4,5.58823748]
[1745874294656,5.58803813,1789.6,1789.2,6.20745493]
[1745874294840,5.58830844,1789.5,1789.1,5.58921789]
[1745874295149,6.34140844,1789.5,1789.2,5.58908856]
[1745874296047,6.34140844,1789.5,1789.1,5.58921789]
[1745874296258,5.58874206,1789.4,1789.0,5.58955785]
[1745874296416,0.7531,1789.3,1789.0,5.58955785]
[1745874296913,0.7531,1789.3,1789.1,5.58938668]
[1745874298946,6.34197975,1789.3,1788.9,5.58985119]
[1745874299461,6.34197975,1789.3,1788.9,11.17969266]
[1745874299633,6.34197975,1789.3,1788.9,11.17969059]
[1745874299828,6.34197975,1789.3,1788.9,5.58984147]
[1745874300169,0.7856,1789.2,1788.6,6.44140822]
[1745874300319,0.7856,1789.2,1788.6,0.29143128]
[1745874300320,0.7856,1788.9,1788.6,0.29143128]
[1745874300659,0.7856,1788.9,1788.6,5.88215434]
[1745874300953,0.7856,1788.9,1788.6,11.47288548]
[1745874301121,0.7856,1788.9,1788.6,5.88215434]
[1745874301319,12.60347939,1788.9,1788.6,0.29143128]
[1745874301614,6.37563881,1788.9,1788.6,0.29143128]
[1745874301853,11.96590985,1788.9,1788.5,5.59112278]
[1745874302157,6.37563881,1788.9,1788.5,5.59112278]
[1745874302451,5.59048697,1788.8,1788.4,5.59141121]
[1745874302658,11.64048697,1788.8,1788.4,5.59141121]
[1745874306635,6.05,1788.8,1788.5,5.5910137]
[1745874307288,6.05,1788.8,1788.4,5.59144522]
[1745874307587,6.05,1788.8,1788.5,5.59126941]
[1745874309498,11.64034798,1788.8,1788.4,5.59138944]
[1745874309793,11.64034798,1788.8,1788.4,11.18274973]
[1745874309993,6.05,1788.8,1788.4,5.59136029]
[1745874310958,11.64036471,1788.8,1788.3,3.5726983]
[1745874311294,11.64036471,1788.8,1788.4,5.59159024]
[1745874311659,5.59105984,1788.6,1788.3,0.29112125]
[1745874311889,0.7632,1788.5,1788.3,5.88302123]
[1745874314191,0.7632,1788.5,1788.3,0.29112125]
[1745874314806,6.3545,1788.5,1788.3,0.29112125]
[1745874315113,6.98992826,1788.5,1788.3,0.29112125]
[1745874315879,7.44862826,1788.5,1788.3,0.29112125]
[1745874318702,13.03995268,1788.5,1788.3,0.29112125]
[1745874323220,7.44862826,1788.5,1788.3,0.29112125]
[1745874326392,6.05,1788.5,1788.4,5.59159024]
[1745874327218,6.05,1788.5,1788.3,0.29112125]
[1745874327629,6.05,1788.6,1788.3,5.8828036]
[1745874328202,6.05,1788.6,1788.3,5.88279895]
[1745874328400,6.05,1788.6,1788.3,11.47450455]
[1745874330130,6.05,1788.6,1788.4,5.59156921]
[1745874331724,0.33988424,1788.5,1788.4,5.59156921]
[1745874334826,0.33988424,1788.5,1788.3,12.0929831]
[1745874335237,0.33988424,1788.5,1788.4,8.54578854]
[1745874335391,6.05,1788.6,1788.5,5.5912776]
[1745874335586,6.38959055,1788.6,1788.5,6.7597776]
[1745874335929,0.33959055,1788.6,1788.5,9.7597776]
[1745874336333,6.05,1789.0,1788.9,5.59002739]
[1745874336619,6.05,1789.1,1789.0,5.58971492]
[1745874336990,33.95512494,1789.3,1789.0,5.58968049]
[1745874337185,36.83052544,1789.3,1789.0,5.58968049]
[1745874337411,31.2417005,1789.3,1789.0,5.58968049]
[1745874338739,14.4587005,1789.3,1789.0,5.58968049]
[1745874338908,6.8123,1789.3,1789.1,5.58930348]
[1745874340036,6.05,1789.3,1789.1,5.58922873]
[1745874340243,6.05,1789.3,1789.2,5.58909009]
[1745874342124,11.6474,1789.5,1789.2,5.58909009]
[1745874343235,17.23557721,1789.5,1789.1,5.58919199]
[1745874343394,11.6474,1789.5,1789.2,5.58907695]
[1745874343835,17.23555471,1789.5,1789.1,5.58929582]
[1745874344010,18.95911018,1789.5,1789.1,5.58929582]
[1745874345114,6.41692877,1789.4,1789.0,5.58952753]
[1745874345304,0.3159643,1789.3,1788.9,5.5897926]
[1745874345500,0.3159643,1789.3,1789.0,5.58960979]
[1745874345812,0.3159643,1789.3,1789.0,5.58951056]
[1745874348038,6.3659643,1789.3,1789.0,5.58951056]
[1745874349539,11.95478725,1789.3,1788.9,5.58984879]
[1745874349720,6.3659643,1789.3,1789.0,5.58964005]
[1745874351011,6.3659643,1789.3,1789.0,11.1791357]
[1745874351207,6.3659643,1789.3,1789.0,5.58949565]
[1745874352741,6.3659643,1789.3,1789.0,5.5894924]
[1745874352914,6.3659643,1789.3,1789.1,5.58939974]
[1745874355033,6.3659643,1789.3,1789.1,5.58923936]
[1745874355343,0.7949,1789.2,1788.9,5.5898228]
[1745874355546,0.7949,1789.2,1789.0,5.58970929]
[1745874355708,0.31666124,1789.1,1789.0,5.58970929]
[1745874358749,0.31666124,1789.1,1788.9,5.5898228]
[1745874358918,0.31666124,1789.1,1788.8,6.20861837]
[1745874359118,0.31666124,1789.1,1788.8,5.59011837]
[1745874359544,0.31666124,1789.1,1788.9,5.59000832]
[1745874359951,0.31666124,1789.1,1788.9,11.17985968]
[1745874360117,0.31666124,1789.1,1788.9,5.58985136]
[1745874361547,0.31666124,1789.1,1788.8,11.18034499]
[1745874361914,0.31666124,1789.1,1788.8,11.18029543]
[1745874362849,0.31666124,1789.1,1788.5,7.7221983]
[1745874363013,0.31666124,1789.1,1788.7,5.59063807]
[1745874363014,6.8341,1789.0,1788.7,5.59063807]
[1745874363218,0.31610556,1788.9,1788.7,5.59063807]
[1745874366756,0.31610556,1788.9,1788.7,11.18110269]
[1745874366936,0.31610556,1788.9,1788.7,5.59046462]
[1745874370142,0.31610556,1788.9,1788.7,5.59042758]
[1745874370352,0.31610556,1788.9,1788.8,6.20883989]
[1745874372023,0.31610556,1788.9,1788.8,5.59033989]
[1745874380381,0.31610556,1788.9,1788.6,5.59084375]
[1745874380698,1.10900556,1788.9,1788.7,5.59063617]
[1745874381202,1.10900556,1788.9,1788.6,5.59077628]
[1745874381495,7.97411923,1788.9,1788.5,5.59115279]
[1745874381800,0.757,1788.8,1788.5,5.59115279]
[1745874382170,0.31575623,1788.7,1788.5,5.59115279]
[1745874382590,0.31575623,1788.7,1788.5,5.59111064]
[1745874383389,0.31575623,1788.7,1788.5,11.18215757]
[1745874383693,0.31575623,1788.7,1788.5,6.70926269]
[1745874383885,0.31575623,1788.7,1788.6,5.590965]
[1745874384091,0.31575623,1788.7,1788.5,5.59104693]
[1745874384697,0.31575623,1788.7,1788.6,5.590965]
[1745874387500,0.31575623,1788.7,1788.5,5.59104693]
[1745874387673,0.31575623,1788.7,1788.4,5.59138228]
[1745874388776,0.31575623,1788.7,1788.4,11.18276268]
[1745874389509,0.31575623,1788.7,1788.5,5.59123784]
[1745874389814,0.31575623,1788.7,1788.5,5.59108648]
[1745874389968,0.31575623,1788.7,1788.5,11.18224925]
[1745874390168,0.31575623,1788.7,1788.5,5.59108648]
[1745874390899,0.31575623,1788.7,1788.6,5.590965]
[1745874391105,0.7854,1788.9,1788.6,5.590965]
[1745874391311,0.31606003,1788.8,1788.6,5.590965]
[1745874391475,0.7854,1788.9,1788.6,5.590965]
[1745874391674,0.31606003,1788.8,1788.6,5.590965]
[1745874391895,0.7854,1788.9,1788.6,5.590965]
[1745874392095,0.31525495,1788.8,1788.6,5.590965]
[1745874392404,6.8354,1788.9,1788.6,5.590965]
[1745874392902,0.31525495,1788.8,1788.6,5.590965]
[1745874393205,6.8354,1788.9,1788.6,11.18160191]
[1745874393435,0.31499947,1788.7,1788.6,6.20929971]
[1745874393604,6.05,1788.9,1788.7,5.59053863]
[1745874393791,6.05,1788.9,1788.7,5.59042447]
[1745874394115,6.05,1788.9,1788.7,11.18087454]
[1745874394321,6.05,1788.9,1788.8,5.59033989]
[1745874397909,6.8203,1789.0,1788.8,5.59033989]
[1745874399210,6.05,1789.0,1788.8,6.20859651]
[1745874399509,6.05,1789.0,1788.8,0.6185]
[1745874399678,6.05,1789.0,1788.7,11.18092629]
[1745874400009,6.05,1789.0,1788.7,12.36086892]
[1745874400205,6.05,1789.0,1788.8,5.59029493]
[1745874400376,6.05,1789.0,1788.8,5.59011028]
[1745874402583,21.9956087,1789.2,1788.8,5.59011028]
[1745874403080,6.05,1789.2,1788.9,2.9541983]
[1745874403397,6.05,1789.2,1789.1,5.58940249]
[1745874403598,6.05,1789.2,1789.0,0.91391983]
[1745874403599,6.05,1789.2,1789.0,6.5034637]
[1745874404090,6.05,1789.2,1789.0,5.8849637]
[1745874405190,0.28768171,1789.1,1789.0,5.8849637]
[1745874406921,0.28768171,1789.1,1789.0,0.29541983]
[1745874408524,0.28768171,1789.1,1788.9,5.5898019]
[1745874411611,1.05838171,1789.1,1788.8,11.18032381]
[1745874411922,1.05838171,1789.1,1788.9,5.59002094]
[1745874412727,7.10838171,1789.1,1788.9,5.59002094]
[1745874413040,5.58993269,1789.0,1788.5,0.90995268]
[1745874413186,0.7678,1788.8,1788.5,0.29145268]
[1745874413387,6.05,1788.7,1788.5,0.29145268]
[1745874413623,6.33632177,1788.7,1788.5,0.29145268]
[1745874413925,6.33632177,1788.7,1788.5,5.59126431]
[1745874419731,6.33632177,1788.7,1788.5,5.5911398]
[1745874421210,6.33632177,1788.7,1788.5,11.18222678]
[1745874421415,6.33632177,1788.7,1788.5,5.59108698]
[1745874429847,6.33632177,1788.7,1788.6,5.590965]
[1745874431847,6.33632177,1788.7,1788.6,6.7710202]
[1745874433552,6.33632177,1788.7,1788.5,6.20958698]
[1745874433768,6.33632177,1788.7,1788.5,5.59108698]
[1745874437823,6.33632177,1788.7,1788.4,5.59139616]
[1745874438027,6.33632177,1788.7,1788.4,5.59136507]
[1745874438242,6.33632177,1788.7,1788.4,5.88288232]
[1745874438441,6.33632177,1788.7,1788.4,6.82844038]
[1745874438725,5.59110439,1788.6,1788.4,0.29151725]
[1745874438928,12.75729565,1788.5,1788.4,0.29151725]
[1745874439357,6.34276581,1788.2,1787.8,6.21173344]
[1745874439555,0.28093639,1788.1,1787.9,5.88477287]
[1745874439761,6.8005,1788.2,1787.9,5.88477287]
[1745874439970,0.27916071,1788.1,1787.9,7.0944235]
[1745874440261,12.39286683,1788.2,1787.9,0.29164558]
[1745874440437,0.27827556,1788.0,1787.8,5.59336735]
[1745874440760,0.27801964,1787.9,1787.8,5.59336735]
[1745874440957,5.59257219,1788.1,1787.7,5.59357727]
[1745874441131,0.27827556,1788.0,1787.7,11.18717664]
[1745874441329,0.27827556,1788.0,1787.7,12.3677443]
[1745874441727,0.27827556,1788.0,1787.7,6.77414493]
[1745874443281,0.7649,1787.9,1787.7,1.18056766]
[1745874443567,0.27776369,1787.8,1787.7,5.59377094]
[1745874453385,6.66219228,1787.8,1787.6,0.29167884]
[1745874453548,8.54797801,1787.7,1787.6,0.29167884]
[1745874453886,0.7908,1787.3,1787.0,5.59584874]
[1745874454168,6.8408,1787.3,1787.0,5.59584874]
[1745874454390,0.26953365,1787.2,1786.9,6.21454575]
[1745874454741,0.26953365,1787.2,1787.0,5.59570979]
[1745874455178,0.26953365,1787.2,1787.1,5.59565776]
[1745874455338,0.26953365,1787.2,1787.1,6.71479452]
[1745874455668,0.26953365,1787.2,1787.0,5.59570979]
[1745874457352,0.26953365,1787.2,1787.1,5.59565776]
[1745874459772,0.26953365,1787.2,1787.0,5.59570979]
[1745874459977,1.05213365,1787.2,1787.0,5.5958652]
[1745874460788,1.05213365,1787.2,1787.0,5.59579626]
[1745874461007,1.05213365,1787.2,1787.0,11.19156873]
[1745874461490,1.05213365,1787.2,1787.0,5.59577247]
[1745874461891,1.05213365,1787.2,1786.9,5.88802695]
[1745874462194,13.40795135,1787.2,1786.7,4.762]
[1745874462381,7.10213365,1787.2,1786.9,5.59626649]
[1745874463268,12.69748937,1787.2,1786.8,8.55077933]
[1745874463990,12.69748937,1787.2,1786.8,8.55059302]
[1745874465195,12.69750951,1787.2,1786.8,8.55059302]
[1745874465908,12.69750951,1787.2,1786.8,8.55057779]
[1745874466201,19.56285448,1787.2,1786.8,8.55057779]
[1745874466602,13.96726046,1787.2,1786.8,14.14700199]
[1745874467296,13.96726046,1787.2,1786.8,8.55057779]
[1745874467703,13.96726046,1787.2,1786.8,14.14694984]
[1745874467912,13.96726046,1787.2,1786.8,8.55056364]
[1745874468093,7.10213365,1787.2,1786.9,5.59623789]